bitfinex-derivatives/quotes_BTCF0:USTF0_20250503
["timestamp","ask_amount","ask_price","bid_price","bid_amount"]
[1746303709146,0.2095074,96358.0,96357.0,0.10006606]
[1746303709646,0.2115074,96358.0,96357.0,0.10006606]
[1746303712144,0.2115074,96358.0,96357.0,0.13236606]
[1746303713251,0.2115074,96358.0,96357.0,0.33987556]
[1746303713850,0.2115074,96358.0,96357.0,0.13236606]
[1746303715550,0.2115074,96358.0,96357.0,0.33987556]
[1746303716952,0.2115074,96358.0,96357.0,0.13236606]
[1746303721556,0.2760074,96358.0,96357.0,0.13236606]
[1746303723766,0.2760074,96358.0,96357.0,0.10006606]
[1746303732361,0.2760074,96358.0,96357.0,0.13136606]
[1746303734570,0.2115074,96358.0,96357.0,0.13136606]
[1746303734770,0.2115074,96358.0,96357.0,0.33887556]
[1746303735071,0.2115074,96358.0,96357.0,0.13136606]
[1746303736269,0.2115074,96358.0,96357.0,0.24936606]
[1746303737872,0.2115074,96358.0,96357.0,0.45687556]
[1746303752189,0.2115074,96358.0,96357.0,0.48967556]
[1746303755780,0.004,96358.0,96357.0,0.85047556]
[1746303756281,0.2115074,96358.0,96357.0,0.85047556]
[1746303774303,0.2755074,96358.0,96357.0,0.85047556]
[1746303783721,0.2755074,96358.0,96357.0,0.57886606]
[1746303783916,0.2755074,96358.0,96357.0,0.42557556]
[1746303801228,0.2755074,96358.0,96357.0,0.36305556]
[1746303801428,0.2755074,96358.0,96357.0,0.42545556]
[1746303806927,0.2755074,96358.0,96357.0,0.45845556]
[1746303822149,0.2755074,96358.0,96357.0,0.25094606]
[1746303822555,0.2755074,96358.0,96357.0,0.45845556]
[1746303825759,0.2755074,96358.0,96357.0,0.25094606]
[1746303826057,0.2755074,96358.0,96357.0,0.45845556]
[1746303827556,0.2755074,96358.0,96357.0,0.25094606]
[1746303827858,0.2755074,96358.0,96357.0,0.21790606]
[1746303828258,0.2755074,96358.0,96357.0,0.09990606]
[1746303830261,0.6363074,96358.0,96357.0,0.09990606]
[1746303830557,0.6363074,96358.0,96357.0,0.13130606]
[1746303839564,0.2075203,96352.0,96351.0,0.55865631]
[1746303839768,0.2075203,96352.0,96351.0,0.62101631]
[1746303839958,0.2075203,96352.0,96351.0,0.6485501]
[1746303840160,0.2075203,96352.0,96351.0,0.7665501]
[1746303840465,0.2700203,96352.0,96351.0,0.7665501]
[1746303840654,0.2710203,96352.0,96351.0,0.7665501]
[1746303840856,0.2720203,96352.0,96351.0,0.7665501]
[1746303842768,0.2720203,96352.0,96351.0,0.7992501]
[1746303844772,0.2720203,96352.0,96351.0,0.5917291]
[1746303844973,0.2720203,96352.0,96351.0,0.44811619]
[1746303845174,0.2720203,96352.0,96351.0,0.24059379]
[1746303845365,0.2720203,96352.0,96351.0,0.44811619]
[1746303845975,0.2720203,96352.0,96351.0,0.24059379]
[1746303850182,0.2720203,96352.0,96351.0,0.44811619]
[1746303850882,0.2720203,96352.0,96351.0,0.24059379]
[1746303855786,0.2720203,96352.0,96351.0,0.27329379]
[1746303872203,0.0645,96352.0,96351.0,0.27329379]
[1746303873007,0.2720203,96352.0,96351.0,0.27329379]
[1746303895210,0.2720203,96352.0,96351.0,0.08467504]
[1746303896111,0.2720203,96352.0,96351.0,0.20267504]
[1746303898021,0.2720203,96352.0,96351.0,0.25183535]
[1746303918725,0.2720203,96352.0,96351.0,0.16716031]
[1746303918917,0.2720203,96352.0,96322.0,0.36235727]
[1746303918918,0.2075828,96323.0,96322.0,0.36235727]
[1746303919122,0.2075828,96323.0,96322.0,0.62236508]
[1746303919524,0.5683828,96323.0,96322.0,0.23116508]
[1746303920128,0.6006828,96323.0,96322.0,0.11916508]
[1746303920425,0.6337828,96323.0,96322.0,0.12416508]
[1746303921332,0.6337828,96323.0,96322.0,0.19283727]
[1746303922330,0.6337828,96323.0,96322.0,0.24292867]
[1746303923835,0.6337828,96323.0,96322.0,0.19283727]
[1746303925135,0.6006828,96323.0,96322.0,0.24589826]
[1746303925326,0.2398828,96323.0,96322.0,0.24589826]
[1746303927734,0.2398828,96323.0,96322.0,0.19283727]
[1746303928127,0.2398828,96323.0,96322.0,0.40042217]
[1746303928433,0.0323,96323.0,96322.0,0.40042217]
[1746303928735,0.6202458,96336.0,96335.0,0.2075569]
[1746303928933,0.6202458,96336.0,96335.0,0.2698769]
[1746303929235,0.6202458,96336.0,96335.0,0.3878769]
[1746303929734,0.6202458,96336.0,96335.0,0.4192769]
[1746303930132,0.6527458,96336.0,96335.0,0.4513769]
[1746303930834,0.6527458,96336.0,96335.0,0.4543769]
[1746303932534,0.6008569,96336.0,96335.0,0.4543769]
[1746303932831,0.0325,96336.0,96335.0,0.4543769]
[1746303934438,0.2400548,96336.0,96335.0,0.4543769]
[1746303936637,0.0325,96336.0,96335.0,0.4543769]
[1746303939644,0.3608,96349.0,96348.0,0.2075289]
[1746303939834,0.5683268,96349.0,96348.0,0.2699689]
[1746303940638,0.5683268,96349.0,96348.0,0.3016689]
[1746303941037,0.5683268,96349.0,96348.0,0.3329689]
[1746303942344,0.6004268,96349.0,96348.0,0.3329689]
[1746303944438,0.6004268,96349.0,96348.0,0.3016689]
[1746303948245,0.7184268,96349.0,96348.0,0.3016689]
[1746303949246,0.6004268,96349.0,96348.0,0.3016689]
[1746303955064,0.6004268,96349.0,96348.0,0.2699689]
[1746303955468,0.6004268,96349.0,96348.0,0.3003689]
[1746303959170,0.6004268,96349.0,96348.0,0.2699689]
[1746303960273,0.6004268,96349.0,96348.0,0.32294165]
[1746303962170,0.7184268,96349.0,96348.0,0.32294165]
[1746303967476,0.7184268,96349.0,96348.0,0.11541275]
[1746303980087,0.7511268,96349.0,96348.0,0.11541275]
[1746303981796,0.7511268,96349.0,96348.0,0.32294165]
[1746303982687,0.7184268,96349.0,96348.0,0.32294165]
[1746303983090,0.7184268,96349.0,96348.0,0.38674165]
[1746303991693,0.6184268,96349.0,96348.0,0.38674165]
[1746303993789,0.5863268,96349.0,96348.0,0.38674165]
[1746303995203,0.4683268,96349.0,96348.0,0.38674165]
[1746304000316,0.1075268,96349.0,96348.0,0.38674165]
[1746304008918,0.1391268,96349.0,96348.0,0.38674165]
[1746304014620,0.1391268,96349.0,96348.0,0.35504165]
[1746304015014,0.1702268,96349.0,96348.0,0.35504165]
[1746304017023,0.1702268,96349.0,96348.0,0.32294165]
[1746304040836,0.1702268,96349.0,96348.0,0.35404165]
[1746304046544,0.1702268,96349.0,96348.0,0.26244287]
[1746304047944,0.1702268,96349.0,96348.0,0.3052959]
[1746304056145,0.2882268,96349.0,96348.0,0.3052959]
[1746304057153,0.2882268,96349.0,96348.0,0.2741959]
[1746304069172,0.2571268,96349.0,96348.0,0.3043959]
[1746304069766,0.1496,96349.0,96348.0,0.3043959]
[1746304070165,0.0316,96349.0,96348.0,0.3043959]
[1746304071276,0.2391268,96349.0,96348.0,0.3043959]
[1746304083584,0.0316,96349.0,96348.0,0.13533303]
[1746304084683,0.2391268,96349.0,96348.0,0.34286193]
[1746304090489,0.22615721,96349.0,96348.0,0.34286193]
[1746304092883,0.22615721,96349.0,96348.0,0.24476357]
[1746304093291,0.01863041,96349.0,96348.0,0.24476357]
[1746304093489,0.22615721,96349.0,96348.0,0.28789372]
[1746304093683,0.01863041,96349.0,96348.0,0.28789372]
[1746304094291,0.01863041,96349.0,96348.0,0.32099372]
[1746304096082,0.01863041,96349.0,96348.0,0.35209372]
[1746304098390,0.01863041,96349.0,96348.0,0.32099372]
[1746304111691,0.00566125,96349.0,96348.0,0.32099372]
[1746304125207,0.21318805,96349.0,96348.0,0.32099372]
[1746304125411,0.24528805,96349.0,96348.0,0.32099372]
[1746304126210,0.24528805,96349.0,96348.0,0.28789372]
[1746304135217,0.36328805,96349.0,96348.0,0.28789372]
[1746304143527,0.36328805,96349.0,96348.0,0.10537015]
[1746304143714,0.36328805,96349.0,96348.0,0.31289905]
[1746304154231,0.15576125,96349.0,96348.0,0.31289905]
[1746304154733,0.36328805,96349.0,96348.0,0.31289905]
[1746304158637,0.36328805,96349.0,96348.0,0.34579905]
[1746304159738,0.15576125,96349.0,96348.0,0.34579905]
[1746304160239,0.03776125,96349.0,96348.0,0.34579905]
[1746304164144,0.3608,96352.0,96351.0,0.2075224]
[1746304165046,0.3608,96352.0,96351.0,0.2394224]
[1746304165437,0.3618,96352.0,96351.0,0.2394224]
[1746304165841,0.3628,96352.0,96351.0,0.2394224]
[1746304168447,0.0338,96352.0,96351.0,0.2394224]
[1746304171348,0.0651,96352.0,96351.0,0.2394224]
[1746304174655,0.05213026,96352.0,96351.0,0.2394224]
[1746304175247,0.25965056,96352.0,96351.0,0.2394224]
[1746304175756,0.25965056,96352.0,96351.0,0.2075224]
[1746304181549,0.25965056,96352.0,96351.0,0.2406224]
[1746304181751,0.2388203,96352.0,96351.0,0.2406224]
[1746304181951,0.2075203,96352.0,96351.0,0.2406224]
[1746304182751,0.2387203,96352.0,96351.0,0.2406224]
[1746304183661,0.2387203,96352.0,96351.0,0.2075224]
[1746304196563,0.22575066,96352.0,96351.0,0.2075224]
[1746304199767,0.22575066,96352.0,96351.0,0.2697224]
[1746304203069,0.34375066,96352.0,96351.0,0.2697224]
[1746304204171,0.1492,96352.0,96351.0,0.2697224]
[1746304204764,0.1492,96352.0,96351.0,0.3335224]
[1746304205164,0.0312,96352.0,96351.0,0.3335224]
[1746304206068,0.1492,96352.0,96351.0,0.3335224]
[1746304206773,0.13623091,96352.0,96351.0,0.3335224]
[1746304207073,0.01823091,96352.0,96351.0,0.3335224]
[1746304209173,0.13623091,96352.0,96351.0,0.3335224]
[1746304211167,0.01823091,96352.0,96351.0,0.3335224]
[1746304212075,0.13623091,96352.0,96351.0,0.3335224]
[1746304213078,0.01823091,96352.0,96351.0,0.3335224]
[1746304214180,0.13623091,96352.0,96351.0,0.3335224]
[1746304218984,0.10255091,96352.0,96351.0,0.3335224]
[1746304222080,0.13335091,96352.0,96351.0,0.3335224]
[1746304225093,0.10255091,96352.0,96351.0,0.3335224]
[1746304225391,0.01873108,96353.0,96352.0,0.2075203]
[1746304225590,0.031,96357.0,96356.0,0.2075117]
[1746304226297,0.149,96357.0,96356.0,0.2075117]
[1746304227586,0.15,96357.0,96356.0,0.2075117]
[1746304228393,0.1813,96357.0,96356.0,0.2075117]
[1746304229196,0.1813,96357.0,96356.0,0.2379117]
[1746304230103,0.1813,96357.0,96356.0,0.0304]
[1746304230594,0.1813,96357.0,96356.0,0.2379117]
[1746304235501,0.16833112,96357.0,96356.0,0.2379117]
[1746304236688,0.37584062,96357.0,96356.0,0.2379117]
[1746304244101,0.37584062,96357.0,96356.0,0.3000717]
[1746304251511,0.36287186,96357.0,96356.0,0.3000717]
[1746304263621,0.3499031,96357.0,96356.0,0.06216]
[1746304263830,0.2075268,96349.0,96338.0,0.0518874]
[1746304264018,0.5683268,96349.0,96348.0,0.06216]
[1746304264324,0.6863268,96349.0,96348.0,0.06216]
[1746304264823,0.7169268,96349.0,96348.0,0.06216]
[1746304265014,1.0707148,96349.0,96348.0,0.10494347]
[1746304265219,1.0707148,96349.0,96348.0,0.06316]
[1746304265817,0.8207148,96349.0,96348.0,0.06316]
[1746304266124,0.8207148,96349.0,96348.0,0.06416]
[1746304266727,0.8519148,96349.0,96348.0,0.06416]
[1746304267530,0.8519148,96349.0,96348.0,0.06316]
[1746304267729,0.8519148,96349.0,96348.0,0.06416]
[1746304288232,0.7481268,96349.0,96348.0,0.06416]
[1746304289535,0.7481268,96349.0,96348.0,0.09626]
[1746304291635,1.1089268,96349.0,96348.0,0.09626]
[1746304294740,0.2075504,96338.0,96337.0,0.06212]
[1746304294931,0.5683504,96338.0,96337.0,0.06212]
[1746304295131,0.6863504,96338.0,96337.0,0.09836474]
[1746304295939,0.6863504,96338.0,96337.0,0.10036474]
[1746304297242,0.6863504,96338.0,96337.0,0.10236474]
[1746304297937,0.6863504,96338.0,96337.0,0.09836474]
[1746304298244,0.6863504,96338.0,96337.0,0.10036474]
[1746304303349,0.6863504,96338.0,96337.0,0.10136474]
[1746304303936,0.6863504,96338.0,96337.0,0.09936474]
[1746304304141,0.6863504,96338.0,96337.0,0.10036474]
[1746304305149,0.6863504,96338.0,96337.0,0.09936474]
[1746304305449,0.6863504,96338.0,96337.0,0.10036474]
[1746304307448,0.7494504,96338.0,96337.0,0.10036474]
[1746304307750,0.7494504,96338.0,96337.0,0.09936474]
[1746304309357,0.7494504,96338.0,96337.0,0.09836474]
[1746304314455,0.7504504,96338.0,96337.0,0.09836474]
[1746304314650,0.2075741,96327.0,96326.0,0.0622]
[1746304314855,0.5683741,96327.0,96326.0,0.0622]
[1746304315153,0.6863741,96327.0,96326.0,0.0993758]
[1746304315755,0.7501741,96327.0,96326.0,0.0993758]
[1746304316150,0.7501741,96327.0,96326.0,0.1003758]
[1746304316353,0.0518945,96326.0,96322.0,0.00155727]
[1746304316558,0.5683828,96323.0,96322.0,0.00155727]
[1746304317150,0.6863828,96323.0,96322.0,0.00155727]
[1746304317557,0.6863828,96323.0,96322.0,0.03942679]
[1746304318054,0.6863828,96323.0,96322.0,0.00155727]
[1746304320160,0.6863828,96323.0,96322.0,7e-08]
[1746304320365,0.2076108,96310.0,96309.0,0.0622]
[1746304321161,0.2685108,96310.0,96309.0,0.0622]
[1746304321463,0.2685108,96310.0,96309.0,0.0632]
[1746304321650,0.2076151,96308.0,96307.0,0.0622]
[1746304322165,0.2685151,96308.0,96307.0,0.0622]
[1746304322550,0.2989151,96308.0,96307.0,0.0622]
[1746304323056,0.2989151,96308.0,96307.0,0.0632]
[1746304323458,0.2989151,96308.0,96307.0,0.07117501]
[1746304324056,0.2989151,96308.0,96307.0,0.07217501]
[1746304329463,0.6597151,96308.0,96307.0,0.07217501]
[1746304332958,0.0519047,96307.0,96305.0,0.0622]
[1746304333163,0.2076194,96306.0,96305.0,0.0622]
[1746304333354,0.2704194,96306.0,96305.0,0.0622]
[1746304334166,0.2704194,96306.0,96305.0,0.0632]
[1746304334568,0.2704194,96306.0,96305.0,0.0622]
[1746304334759,0.2704194,96306.0,96305.0,0.0632]
[1746304334958,0.2704194,96306.0,96305.0,0.0642]
[1746304335161,0.2704194,96306.0,96305.0,0.07205064]
[1746304335568,0.2704194,96306.0,96305.0,0.07105064]
[1746304335867,0.2704194,96306.0,96305.0,0.07205064]
[1746304350563,0.2704194,96306.0,96305.0,0.27967224]
[1746304351970,0.2704194,96306.0,96305.0,0.54338347]
[1746304355273,0.2704194,96306.0,96305.0,0.42142533]
[1746304357375,0.2704194,96306.0,96305.0,0.1577141]
[1746304358362,0.2704194,96306.0,96305.0,0.0622]
[1746304358566,0.2704194,96306.0,96305.0,0.06989803]
[1746304358975,0.2704194,96306.0,96305.0,0.07089803]
[1746304359776,0.2704194,96306.0,96305.0,0.06989803]
[1746304361476,0.2704194,96306.0,96305.0,0.28165292]
[1746304361866,0.2704194,96306.0,96305.0,0.21945292]
[1746304362373,0.3884194,96306.0,96305.0,0.21945292]
[1746304364178,0.2704194,96306.0,96305.0,0.21945292]
[1746304365177,0.3884194,96306.0,96305.0,0.21945292]
[1746304368976,0.3884194,96306.0,96305.0,0.22045292]
[1746304369381,0.3884194,96306.0,96305.0,0.00869803]
[1746304369678,0.3884194,96306.0,96305.0,0.00769803]
[1746304369879,0.2076216,96305.0,96304.0,0.31040254]
[1746304370273,0.2730216,96305.0,96304.0,0.31040254]
[1746304372182,0.2730216,96305.0,96304.0,0.31140254]
[1746304372575,0.2730216,96305.0,96304.0,0.09964765]
[1746304373385,0.2730216,96305.0,96304.0,0.1072795]
[1746304377087,0.3910216,96305.0,96304.0,0.1072795]
[1746304379176,0.2730216,96305.0,96304.0,0.1072795]
[1746304380088,0.3910216,96305.0,96304.0,0.1072795]
[1746304385289,0.2730216,96305.0,96304.0,0.1072795]
[1746304386088,0.3910216,96305.0,96304.0,0.1072795]
[1746304390496,0.3910216,96305.0,96304.0,0.0450795]
[1746304390684,0.3910216,96305.0,96304.0,0.1072395]
[1746304401891,0.3910216,96305.0,96304.0,0.0450795]
[1746304403897,0.3910216,96305.0,96304.0,0.0440795]
[1746304404099,0.3910216,96305.0,96304.0,0.001]
[1746304404292,0.3910216,96305.0,96304.0,0.06312]
[1746304404801,0.3910216,96305.0,96304.0,0.11321189]
[1746304407593,0.3910216,96305.0,96304.0,0.12088734]
[1746304415306,0.3910216,96305.0,96304.0,0.05876734]
[1746304415508,0.2076259,96303.0,96302.0,0.26371123]
[1746304415699,0.2076259,96303.0,96302.0,0.31526164]
[1746304416100,0.3256259,96303.0,96302.0,0.31526164]
[1746304416504,0.3256259,96303.0,96302.0,0.05918875]
[1746304416702,0.2076345,96299.0,96298.0,0.26371123]
[1746304416897,0.5684345,96299.0,96298.0,0.26371123]
[1746304417097,0.6864345,96299.0,96298.0,0.26371123]
[1746304417502,0.7496345,96299.0,96298.0,0.26371123]
[1746304417706,0.7496345,96299.0,96298.0,0.26471123]
[1746304417893,0.7496345,96299.0,96298.0,0.26571123]
[1746304418906,0.7496345,96299.0,96298.0,0.31837767]
[1746304420005,0.7496345,96299.0,96298.0,0.05466644]
[1746304421209,0.7496345,96299.0,96298.0,0.06254537]
[1746304422713,0.7496345,96299.0,96298.0,0.06154537]
[1746304423909,0.7496345,96299.0,96298.0,0.06054537]
[1746304424112,0.7496345,96299.0,96298.0,0.001]
[1746304424302,0.7496345,96299.0,96298.0,0.05403293]
[1746304424707,0.7496345,96299.0,96298.0,0.05303293]
[1746304424914,0.2076431,96295.0,96294.0,0.06987792]
[1746304425110,0.3256431,96295.0,96294.0,0.06987792]
[1746304425707,0.3870431,96295.0,96294.0,0.06987792]
[1746304426217,0.3870431,96295.0,96294.0,0.07087792]
[1746304426416,0.3870431,96295.0,96294.0,0.07187792]
[1746304428522,0.3870431,96295.0,96294.0,0.12257482]
[1746304432918,0.3870431,96295.0,96294.0,0.12157482]
[1746304433729,0.3870431,96295.0,96294.0,0.12057482]
[1746304439131,0.7478431,96295.0,96294.0,0.12057482]
[1746304446136,0.3870431,96295.0,96294.0,0.12057482]
[1746304446337,0.7478431,96295.0,96294.0,0.12057482]
[1746304448137,0.3870431,96295.0,96294.0,0.12057482]
[1746304448438,0.7478431,96295.0,96294.0,0.12057482]
[1746304457544,0.7478431,96295.0,96294.0,0.32822012]
[1746304458243,0.6298431,96295.0,96294.0,0.32822012]
[1746304461149,0.7478431,96295.0,96294.0,0.32822012]
[1746304462238,0.7478431,96295.0,96294.0,0.35912012]
[1746304463248,0.6298431,96295.0,96294.0,0.35912012]
[1746304464045,0.7478431,96295.0,96294.0,0.35912012]
[1746304465153,0.6298431,96295.0,96294.0,0.35912012]
[1746304470052,0.6298431,96295.0,96294.0,0.32822012]
[1746304474165,0.7478431,96295.0,96294.0,0.32822012]
[1746304484569,0.7478431,96295.0,96294.0,0.26610012]
[1746304492479,0.3870431,96295.0,96294.0,0.56171135]
[1746304493167,0.25606641,96295.0,96294.0,0.56171135]
[1746304495077,0.25606641,96295.0,96294.0,0.56271135]
[1746304495473,0.25606641,96295.0,96294.0,0.29900012]
[1746304495677,0.25606641,96295.0,96294.0,0.29800012]
[1746304495977,0.25606641,96295.0,96294.0,0.29900012]
[1746304501386,0.25606641,96295.0,96294.0,0.26710012]
[1746304503583,0.25606641,96295.0,96294.0,0.05945482]
[1746304503785,0.24308969,96295.0,96294.0,0.26710012]
[1746304504174,0.36108969,96295.0,96294.0,0.26710012]
[1746304504379,0.36108969,96295.0,96294.0,0.05945482]
[1746304510401,0.72188969,96295.0,96294.0,0.05945482]
[1746304510696,0.2076474,96293.0,96292.0,0.14775252]
[1746304510898,0.2076474,96293.0,96292.0,0.15557044]
[1746304511087,0.3256474,96293.0,96292.0,0.15557044]
[1746304511288,0.3256474,96293.0,96292.0,0.19897583]
[1746304511485,0.3256474,96293.0,96292.0,0.05122331]
[1746304511700,0.2076496,96292.0,96291.0,0.06212]
[1746304511897,0.3028496,96292.0,96291.0,0.06212]
[1746304512096,0.4208496,96292.0,96291.0,0.06212]
[1746304512599,0.4208496,96292.0,96291.0,0.2697718]
[1746304512796,0.4198496,96292.0,96291.0,0.2707718]
[1746304513302,0.4198496,96292.0,96291.0,0.2717718]
[1746304513800,0.4198496,96292.0,96291.0,0.31548014]
[1746304514796,0.40687165,96292.0,96291.0,0.31548014]
[1746304515001,0.76767165,96292.0,96291.0,0.31548014]
[1746304515903,0.76767165,96292.0,96291.0,0.32315515]
[1746304517903,0.76767165,96292.0,96291.0,0.58760901]
[1746304524703,0.7546937,96292.0,96291.0,0.58760901]
[1746304528510,0.7546937,96292.0,96291.0,0.32315515]
[1746304540820,0.3938937,96292.0,96291.0,0.32315515]
[1746304541021,0.7546937,96292.0,96291.0,0.32315515]
[1746304541920,0.3938937,96292.0,96291.0,0.32315515]
[1746304542121,0.7546937,96292.0,96291.0,0.32315515]
[1746304542826,0.74171569,96292.0,96291.0,0.32315515]
[1746304554533,0.74171569,96292.0,96291.0,0.11550335]
[1746304566336,0.74171569,96292.0,96291.0,0.38024764]
[1746304569843,0.74171569,96292.0,96291.0,0.11550335]
[1746304580350,0.38091569,96292.0,96291.0,0.11550335]
[1746304580550,0.74171569,96292.0,96291.0,0.11550335]
[1746304588445,0.74171569,96292.0,96291.0,0.05338335]
[1746304589045,0.38091569,96292.0,96291.0,0.05338335]
[1746304593251,0.38091569,96292.0,96291.0,0.11546335]
[1746304608661,0.38091569,96292.0,96291.0,0.32311515]
[1746304619467,0.38091569,96292.0,96291.0,0.32211515]
[1746304619663,0.38091569,96292.0,96291.0,0.32311515]
[1746304640980,0.38091569,96292.0,96291.0,0.22588594]
[1746304641171,0.38091569,96292.0,96291.0,0.06404]
[1746304641572,0.38091569,96292.0,96291.0,0.2716918]
[1746304642378,0.38091569,96292.0,96291.0,0.32266496]
[1746304643274,0.38091569,96292.0,96291.0,0.33055621]
[1746304651187,0.38091569,96292.0,96291.0,0.12290441]
[1746304653590,0.38091569,96292.0,96291.0,0.06086441]
[1746304671905,0.38091569,96292.0,96291.0,0.26851621]
[1746304676513,0.38091569,96292.0,96291.0,0.33055621]
[1746304678511,0.38091569,96292.0,96291.0,0.5952986]
[1746304679916,0.38091569,96292.0,96291.0,0.12290441]
[1746304681210,0.38091569,96292.0,96291.0,0.06086441]
[1746304682418,0.38091569,96292.0,96291.0,0.32560034]
[1746304685219,0.38091569,96292.0,96291.0,0.06086441]
[1746304690121,0.74171569,96292.0,96291.0,0.06086441]
[1746304700618,0.74171569,96292.0,96291.0,0.26851621]
[1746304701029,0.36793761,96292.0,96291.0,0.26851621]
[1746304701231,0.72873761,96292.0,96291.0,0.26851621]
[1746304711129,0.71575953,96292.0,96291.0,0.26851621]
[1746304716135,0.35495953,96292.0,96291.0,0.26851621]
[1746304717545,0.35495953,96292.0,96291.0,0.06086441]
[1746304724129,0.35495953,96292.0,96291.0,0.26851621]
[1746304738549,0.2142,96292.0,96291.0,0.06086441]
[1746304741151,0.4218496,96292.0,96291.0,0.06086441]
[1746304769764,0.4218496,96292.0,96291.0,0.26851621]
[1746304770561,0.4218496,96292.0,96291.0,0.06086441]
[1746304771865,0.4218496,96292.0,96291.0,0.26851621]
[1746304779872,0.4218496,96292.0,96291.0,0.06086441]
[1746304781167,0.4218496,96292.0,96291.0,0.26851621]
[1746304786277,0.4218496,96292.0,96291.0,0.11894767]
[1746304786778,0.2076518,96291.0,96290.0,0.06196]
[1746304786976,0.2726518,96291.0,96290.0,0.06196]
[1746304787175,0.3906518,96291.0,96290.0,0.06196]
[1746304788275,0.3906518,96291.0,96290.0,0.10674323]
[1746304788773,0.3906518,96291.0,96290.0,0.31439713]
[1746304789477,0.3906518,96291.0,96290.0,0.32321945]
[1746304795790,0.7514518,96291.0,96290.0,0.32321945]
[1746304796888,0.7514518,96291.0,96290.0,0.05360555]
[1746304797480,0.7514518,96291.0,96290.0,0.26125945]
[1746304798193,0.7514518,96291.0,96290.0,0.32321945]
[1746304799889,0.7514518,96291.0,96290.0,0.11556555]
[1746304828906,0.7514518,96291.0,96290.0,0.38029576]
[1746304829513,0.7514518,96291.0,96290.0,0.31833576]
[1746304832116,0.7514518,96291.0,96290.0,0.05360555]
[1746304853922,0.7514518,96291.0,96290.0,0.318318]
[1746304856935,0.7514518,96291.0,96290.0,0.05360555]
[1746304857828,0.7514518,96291.0,96290.0,0.26125945]
[1746304858033,0.7514518,96291.0,96290.0,0.05360555]
[1746304872641,0.2076561,96289.0,96288.0,0.2235019]
[1746304872841,0.2076561,96289.0,96288.0,0.2854219]
[1746304873141,0.3256561,96289.0,96288.0,0.2854219]
[1746304873342,0.3564561,96289.0,96288.0,0.2854219]
[1746304873534,0.3876561,96289.0,96288.0,0.2854219]
[1746304874442,0.3876561,96289.0,96288.0,0.2864219]
[1746304874638,0.3876561,96289.0,96288.0,0.33853331]
[1746304874840,0.3876561,96289.0,96288.0,0.33953331]
[1746304877349,0.3876561,96289.0,96288.0,0.34717325]
[1746304879747,0.3876561,96289.0,96288.0,0.12367135]
[1746304883747,0.3876561,96289.0,96288.0,0.33132955]
[1746304885646,0.3876561,96289.0,96288.0,0.12367135]
[1746304900752,0.3876561,96289.0,96288.0,0.06175135]
[1746304900944,0.3876561,96289.0,96288.0,0.12363135]
[1746304909158,0.2696561,96289.0,96288.0,0.24163135]
[1746304913259,0.2696561,96289.0,96288.0,0.2383295]
[1746304946692,0.2696561,96289.0,96288.0,0.50307384]
[1746304957700,0.2696561,96289.0,96288.0,0.2383295]
[1746304992029,0.2696561,96289.0,96288.0,0.07147454]
[1746304993230,0.2696561,96289.0,96288.0,0.12229962]
[1746304995127,0.2696561,96289.0,96288.0,0.13010559]
[1746305007234,0.2696561,96289.0,96288.0,0.06822559]
[1746305007428,0.2696561,96289.0,96288.0,0.13006559]
[1746305016333,0.2696561,96289.0,96288.0,0.39481166]
[1746305020145,0.2696561,96289.0,96288.0,0.13006559]
[1746305028044,0.2696561,96289.0,96288.0,0.06822559]
[1746305028249,0.2696561,96289.0,96288.0,0.13006559]
[1746305035857,0.2696561,96289.0,96288.0,0.39481918]
[1746305038854,0.2696561,96289.0,96288.0,0.13006559]
[1746305039056,0.3735121,96289.0,96288.0,9e-08]
[1746305039262,0.3735121,96289.0,96288.0,0.0681]
[1746305039455,0.2696561,96289.0,96288.0,0.0681]
[1746305040162,0.2076647,96285.0,96284.0,0.37605782]
[1746305041061,0.2405647,96285.0,96284.0,0.37605782]
[1746305041262,0.2405647,96285.0,96284.0,0.49405782]
[1746305042164,0.6013647,96285.0,96284.0,0.49405782]
[1746305042465,0.6013647,96285.0,96284.0,0.49505782]
[1746305042655,0.6326647,96285.0,96284.0,0.49505782]
[1746305042856,0.6326647,96285.0,96284.0,0.49605782]
[1746305043463,0.6326647,96285.0,96284.0,0.17837471]
[1746305044663,0.6326647,96285.0,96284.0,0.17737471]
[1746305066974,0.1226974,96310.0,96284.0,0.17737471]
[1746305066975,0.2076389,96300.0,96299.0,0.2076323]
[1746305067181,0.0643,96304.0,96299.0,0.2076323]
[1746305067479,0.2408389,96300.0,96299.0,0.2076323]
[1746305068075,0.2438389,96300.0,96299.0,0.3256323]
[1746305068778,0.2468389,96300.0,96299.0,0.3256323]
[1746305069277,0.2458389,96300.0,96299.0,0.3256323]
[1746305070373,0.2448389,96300.0,96299.0,0.3256323]
[1746305080386,0.2428389,96300.0,96299.0,0.3286323]
[1746305080589,0.2408389,96300.0,96299.0,0.3286323]
[1746305080793,0.2408389,96300.0,96299.0,0.3316323]
[1746305082189,0.2714389,96300.0,96299.0,0.3316323]
[1746305082890,0.2714389,96300.0,96299.0,0.3636323]
[1746305083889,0.0638,96300.0,96299.0,0.3636323]
[1746305084079,0.001,96336.0,96314.0,0.0519]
[1746305084287,0.28259508,96342.0,96341.0,0.207544]
[1746305084486,0.28259508,96342.0,96341.0,0.630424]
[1746305084487,0.33448068,96342.0,96341.0,0.630424]
[1746305084892,0.28259508,96342.0,96341.0,0.630424]
[1746305085090,0.40059508,96342.0,96341.0,0.6821114]
[1746305085593,0.40059508,96342.0,96341.0,0.69001243]
[1746305086781,0.40159508,96342.0,96341.0,0.69001243]
[1746305087692,0.46309508,96342.0,96341.0,0.69001243]
[1746305087892,0.49399508,96342.0,96341.0,0.69001243]
[1746305088988,0.4189476,96342.0,96341.0,0.69001243]
[1746305090397,0.4189476,96342.0,96341.0,0.32921243]
[1746305090594,0.4189476,96342.0,96341.0,0.69001243]
[1746305091498,0.4189476,96342.0,96341.0,0.32921243]
[1746305091697,0.4189476,96342.0,96341.0,0.69001243]
[1746305094297,0.4189476,96342.0,96341.0,0.32921243]
[1746305095596,0.4189476,96342.0,96341.0,0.69001243]
[1746305103498,0.2114,96342.0,96341.0,0.69001243]
[1746305103710,0.4126789,96355.0,96353.0,0.207516]
[1746305103711,0.2075168,96354.0,96353.0,0.207516]
[1746305103897,0.2719168,96354.0,96353.0,0.568316]
[1746305104100,0.3899168,96354.0,96353.0,0.568316]
[1746305104494,0.3899168,96354.0,96353.0,0.3608]
[1746305104695,0.3899168,96354.0,96353.0,0.568316]
[1746305105606,0.1824,96354.0,96353.0,0.568316]
[1746305105905,0.389916,96354.0,96353.0,0.629216]
[1746305106113,0.393916,96354.0,96353.0,0.629216]
[1746305106504,0.396916,96354.0,96353.0,0.629216]
[1746305107807,0.396916,96354.0,96353.0,0.568316]
[1746305110303,0.393916,96354.0,96353.0,0.568316]
[1746305110511,0.396916,96354.0,96353.0,0.568316]
[1746305110809,0.395916,96354.0,96353.0,0.568316]
[1746305112214,0.395916,96354.0,96353.0,0.207516]
[1746305112510,0.395916,96354.0,96341.0,0.54416843]